bitfinex-derivatives/quotes_SOLF0:USTF0_20260210
["timestamp","ask_amount","ask_price","bid_price","bid_amount"]
[1770740717322,3.86814658,84.499,84.431,3.97778878]
[1770740718024,99.54,84.506,84.431,3.97778878]
[1770740718025,10.6597,84.481,84.431,14.64358878]
[1770740718223,3.86814658,84.483,84.431,3.97778878]
[1770740719031,3.86814658,84.483,84.436,10.6652]
[1770740719424,3.86814658,84.483,84.431,3.97778878]
[1770740719624,3.86814658,84.483,84.401,3.97778878]
[1770740720326,3.92632005,84.473,84.401,3.97778878]
[1770740720532,3.92632005,84.469,84.401,3.97778878]
[1770740720722,3.92632005,84.46,84.406,10.6691]
[1770740720922,3.92632005,84.459,84.406,10.6691]
[1770740721929,10.6635,84.451,84.398,10.67]
[1770740722134,10.6635,84.451,84.381,4.11114932]
[1770740723129,10.6624,84.459,84.401,3.78081445]
[1770740723524,10.6624,84.459,84.38,9.62979943]
[1770740723525,3.86564094,84.458,84.381,3.78081445]
[1770740724331,3.86564094,84.43,84.382,10.6721]
[1770740724532,3.86564094,84.43,84.381,3.78081445]
[1770740724933,10.6643,84.444,84.395,10.6703]
[1770740725133,10.6643,84.444,84.381,3.78081445]
[1770740725631,3.86564094,84.449,84.404,10.6693]
[1770740726737,94.52,84.456,84.411,10.6684]
[1770740727041,10.6629,84.455,84.398,3.78081445]
[1770740727330,10.95360391,84.463,84.398,3.78081445]
[1770740727531,3.86564094,84.466,84.398,3.78081445]
[1770740727741,10.6619,84.463,84.398,3.78081445]
[1770740728232,10.6619,84.463,84.418,10.6674]
[1770740729440,3.86564094,84.458,84.381,3.78081445]
[1770740730135,3.86564094,84.446,84.401,10.6697]
[1770740730335,3.86564094,84.446,84.381,3.78081445]
[1770740730835,14.52964094,84.446,84.4,10.6698]
[1770740731338,10.6645,84.443,84.4,10.6698]
[1770740731538,3.86564094,84.445,84.4,10.6698]
[1770740731934,3.86564094,84.411,84.344,3.78081445]
[1770740733143,3.86564094,84.399,84.344,3.78081445]
[1770740733340,3.86564094,84.399,84.324,3.78081445]
[1770740734038,3.86564094,84.399,84.34,10.6774]
[1770740734236,3.86564094,84.399,84.34,14.45821445]
[1770740734444,9.62979943,84.4,84.354,10.6755]
[1770740734638,14.57511935,84.429,84.34,3.78081445]
[1770740734639,3.86564094,84.416,84.34,3.78081445]
[1770740735841,3.86564094,84.414,84.363,10.6745]
[1770740736340,10.6684,84.412,84.363,10.6745]
[1770740736542,10.6684,84.412,84.364,3.78081445]
[1770740736745,3.86564094,84.431,84.364,3.78081445]
[1770740737345,10.95360391,84.449,84.34,21.3548]
[1770740737346,10.669,84.407,84.347,3.78081445]
[1770740737739,3.86564094,84.41,84.347,3.78081445]
[1770740737939,3.86564094,84.408,84.324,3.78081445]
[1770740739244,10.6701,84.398,84.342,10.6771]
[1770740739445,3.86564094,84.408,84.343,3.78081445]
[1770740740744,3.86564094,84.408,84.36,10.6749]
[1770740743346,3.86564094,84.408,84.368,10.6738]
[1770740743552,3.86564094,84.425,84.368,10.6738]
[1770740743753,3.86564094,84.425,84.341,3.78081445]
[1770740744551,3.86564094,84.407,84.351,3.78081445]
[1770740745052,3.86564094,84.407,84.352,10.6759]
[1770740745447,3.86564094,84.407,84.332,3.78081445]
[1770740745749,3.86564094,84.389,84.332,3.78081445]
[1770740745949,3.86564094,84.389,84.34,10.6774]
[1770740746451,3.86564094,84.409,84.34,3.78081445]
[1770740746847,3.86564094,84.425,84.358,3.78081445]
[1770740747347,3.86564094,84.425,84.36,10.6748]
[1770740747548,3.86564094,84.425,84.326,96.24]
[1770740747549,3.86564094,84.425,84.342,3.78081445]
[1770740747948,10.6689,84.408,84.351,10.6759]
[1770740748149,10.6689,84.408,84.352,3.78081445]
[1770740748553,10.6697,84.401,84.352,3.78081445]
[1770740748757,3.86564094,84.409,84.352,3.78081445]
[1770740749050,10.6696,84.402,84.354,10.6756]
[1770740749243,10.6696,84.402,84.352,3.78081445]
[1770740749443,3.86564094,84.409,84.352,3.78081445]
[1770740750748,3.86564094,84.409,84.36,10.6748]
[1770740751647,3.86564094,84.409,84.323,3.78911619]
[1770740752248,10.669,84.407,84.361,10.6746]
[1770740753155,3.86564094,84.409,84.367,10.6739]
[1770740753745,10.6679,84.416,84.367,14.46301619]
[1770740753956,10.6688,84.408,84.367,3.78911619]
[1770740754147,4.05504604,84.424,84.367,3.78911619]
[1770740754956,4.05504604,84.424,84.377,10.6726]
[1770740755450,4.05504604,84.424,84.367,3.78911619]
[1770740756050,4.05504604,84.424,84.378,3.78911619]
[1770740756257,4.05504604,84.443,84.378,3.78911619]
[1770740756654,4.05504604,84.443,84.397,10.6701]
[1770740756857,4.05504604,84.443,84.397,14.45921619]
[1770740757760,10.6646,84.441,84.397,14.45921619]
[1770740757955,4.05504604,84.443,84.403,10.6693]
[1770740758164,4.05504604,84.462,84.403,10.6693]
[1770740758350,4.05504604,84.451,84.403,10.6693]
[1770740759256,4.05504604,84.462,84.417,10.6676]
[1770740760164,4.05504604,84.484,84.418,3.78911619]
[1770740760361,4.05504604,84.484,84.421,3.78911619]
[1770740760558,4.05504604,84.484,84.424,10.6667]
[1770740760760,4.05504604,84.484,84.39,21.3422]
[1770740760761,9.62979943,84.47,84.405,3.78911619]
[1770740761065,14.71884604,84.448,84.402,10.6695]
[1770740761461,4.05504604,84.447,84.381,3.78911619]
[1770740761661,4.05504604,84.417,84.331,3.78911619]
[1770740761860,4.05504604,84.409,84.331,3.78911619]
[1770740762162,10.669,84.407,84.357,10.6752]
[1770740762359,4.05504604,84.407,84.357,14.46431619]
[1770740762559,4.05504604,84.407,84.357,3.78911619]
[1770740762864,4.05504604,84.407,84.331,3.78911619]
[1770740763060,4.05504604,84.407,84.356,10.6753]
[1770740763666,4.05504604,84.429,84.357,3.78911619]
[1770740763867,4.05504604,84.407,84.357,3.78911619]
[1770740764858,4.05504604,84.428,84.366,10.6741]
[1770740765168,4.05504604,84.428,84.357,3.78911619]
[1770740765363,10.6696,84.403,84.357,3.78911619]
[1770740765568,99.34,84.429,84.35,10.6761]
[1770740765569,4.05504604,84.405,84.35,10.6761]
[1770740766167,10.6695,84.403,84.353,10.6757]
[1770740766474,10.6695,84.403,84.351,3.78911619]
[1770740766768,10.6695,84.403,84.352,10.6759]
[1770740766968,10.6695,84.403,84.353,3.78911619]
[1770740767168,10.6706,84.394,84.353,3.78911619]
[1770740767561,9.62979943,84.41,84.353,3.78911619]
[1770740767769,10.6685,84.411,84.353,3.78911619]
[1770740768761,10.6685,84.411,84.363,10.6744]
[1770740768959,4.05504604,84.422,84.353,3.78911619]
[1770740769165,4.05504604,84.403,84.331,3.78911619]
[1770740770367,4.05504604,84.403,84.353,10.6757]
[1770740770969,10.6698,84.401,84.346,3.78911619]
[1770740771167,4.05504604,84.4,84.346,3.78911619]
[1770740771575,10.6704,84.396,84.346,3.78911619]
[1770740772073,4.05504604,84.395,84.346,3.78911619]
[1770740772478,4.05504604,84.395,84.333,3.78911619]
[1770740773676,10.6714,84.388,84.336,10.6779]
[1770740773877,4.05504604,84.395,84.333,3.78911619]
[1770740774274,4.05504604,84.395,84.352,10.6758]
[1770740774578,4.05504604,84.412,84.348,3.78911619]
[1770740775778,4.05504604,84.412,84.368,10.6739]
[1770740776671,4.05504604,84.421,84.363,3.78911619]
[1770740777069,4.05504604,84.421,84.375,10.6729]
[1770740777275,4.05504604,84.421,84.363,3.78911619]
[1770740778277,14.72234604,84.421,84.375,10.6729]
[1770740778478,4.05504604,84.42,84.375,10.6729]
[1770740779078,4.05504604,84.42,84.336,14.60758815]
[1770740779079,10.95360391,84.432,84.378,3.78911619]
[1770740779279,4.05504604,84.436,84.378,3.78911619]
[1770740779684,4.05504604,84.436,84.384,10.6718]
[1770740780277,10.95360391,84.442,84.346,3.86750425]
[1770740780278,3.70616461,84.429,84.346,3.86750425]
[1770740780486,3.70616461,84.419,84.346,3.86750425]
[1770740780785,3.70616461,84.418,84.346,3.86750425]
[1770740781185,3.70616461,84.411,84.36,10.6748]
[1770740781689,10.95360391,84.424,84.368,3.86750425]
[1770740781886,3.98080001,84.429,84.368,3.86750425]
[1770740782288,3.98080001,84.427,84.368,3.86750425]
[1770740782881,3.98080001,84.415,84.353,3.80785741]
[1770740783489,10.95360391,84.425,84.364,3.80785741]
[1770740783693,3.98080001,84.428,84.364,3.80785741]
[1770740783988,10.667,84.423,84.368,10.6739]
[1770740785281,10.667,84.423,84.368,14.48175741]
[1770740785683,14.64780001,84.423,84.368,14.48175741]
[1770740785883,10.6675,84.419,84.368,14.48175741]
[1770740786287,3.98080001,84.419,84.368,14.48175741]
[1770740787587,3.98080001,84.419,84.368,3.80785741]
[1770740787793,3.98080001,84.404,84.36,10.6748]
[1770740787992,3.98080001,84.42,84.361,3.80785741]
[1770740788789,10.6685,84.411,84.364,10.6743]
[1770740788994,3.98080001,84.435,84.365,3.80785741]
[1770740789594,3.98080001,84.435,84.35,9.63297305]
[1770740789595,10.6664,84.427,84.386,10.6715]
[1770740790597,10.6664,84.427,84.38,3.80785741]
[1770740790987,3.5947102,84.42,84.38,3.80785741]
[1770740791187,3.5947102,84.42,84.383,10.6719]
[1770740791394,10.6664,84.427,84.383,10.6719]
[1770740791595,10.667,84.422,84.383,10.6719]
[1770740792893,3.98080001,84.415,84.372,10.6733]
[1770740793094,3.5947102,84.4,84.351,3.80785741]
[1770740793493,3.5947102,84.4,84.37,10.6736]
[1770740793793,3.5947102,84.42,84.371,3.80785741]
[1770740794198,3.98080001,84.418,84.371,3.80785741]
[1770740794399,3.98080001,84.418,84.36,7.40256761]
[1770740794699,10.6688,84.409,84.362,10.6745]
[1770740794901,3.98080001,84.408,84.362,10.6745]
[1770740795301,3.5947102,84.41,84.365,3.80785741]
[1770740795801,3.5947102,84.4,84.351,3.80785741]
[1770740796001,3.98080001,84.409,84.366,10.6741]
[1770740796697,10.6676,84.418,84.375,3.80785741]
[1770740797502,3.98080001,84.424,84.375,3.80785741]
[1770740797703,3.98080001,84.424,84.38,3.5947102]
[1770740798108,3.98080001,84.424,84.38,7.40256761]
[1770740798506,10.6655,84.434,84.381,3.80785741]
[1770740799306,10.6655,84.434,84.391,10.6709]
[1770740800406,10.6655,84.434,84.392,3.80785741]
[1770740801005,10.6646,84.442,84.392,3.80785741]
[1770740801209,7.57551021,84.47,84.42,3.5947102]
[1770740801604,3.98080001,84.469,84.412,14.47605741]
[1770740801802,3.98080001,84.469,84.413,3.80785741]
[1770740802910,3.98080001,84.459,84.413,3.80785741]
[1770740803404,21.97257447,84.502,84.39,9.6197485]
[1770740803405,3.98080001,84.489,84.415,3.80785741]
[1770740804209,9.6197485,84.48,84.415,3.80785741]
[1770740804508,3.98080001,84.479,84.415,3.80785741]
[1770740804700,3.98080001,84.479,84.43,10.666]
[1770740804908,3.98080001,84.479,84.391,3.80785741]
[1770740805813,3.98080001,84.477,84.421,10.6671]
[1770740806214,3.98080001,84.477,84.412,3.80785741]
[1770740806410,3.98080001,84.475,84.397,3.80785741]
[1770740806813,3.98080001,84.475,84.401,3.80785741]
[1770740807705,3.98080001,84.472,84.428,10.6662]
[1770740808013,3.98080001,84.472,84.416,3.80785741]
[1770740808311,3.98080001,84.488,84.43,3.80785741]
[1770740809810,9.6197485,84.51,84.43,3.80785741]
[1770740809811,3.98080001,84.486,84.439,10.6649]
[1770740810315,3.89372318,84.501,84.447,10.6639]
[1770740811013,14.55212318,84.491,84.44,3.71925178]
[1770740811217,3.89372318,84.49,84.44,3.71925178]
[1770740811413,3.89372318,84.513,84.441,3.71925178]
[1770740811714,3.89372318,84.513,84.46,10.6621]
[1770740811907,3.89372318,84.513,84.461,3.71925178]
[1770740812703,3.89372318,84.513,84.476,10.6601]
[1770740812909,3.89372318,84.528,84.476,10.6601]
[1770740813613,10.6542,84.524,84.476,10.6601]
[1770740814116,3.89372318,84.528,84.484,10.6591]
[1770740814314,3.89372318,84.541,84.485,3.71925178]
[1770740815209,3.89372318,84.541,84.46,9.6197485]
[1770740815409,3.89372318,84.539,84.461,3.71925178]
[1770740815819,3.89372318,84.539,84.485,3.71925178]
[1770740816709,10.6525,84.538,84.486,10.6589]
[1770740816908,3.89372318,84.537,84.486,10.6589]
[1770740817532,3.89372318,84.531,84.485,3.71925178]
[1770740818110,10.6515,84.545,84.49,10.6584]
[1770740818311,10.6515,84.545,84.49,14.37765178]
[1770740818616,3.89372318,84.544,84.491,3.71925178]
[1770740819005,3.89372318,84.544,84.49,10.6584]
[1770740819006,3.89372318,84.539,84.473,10.6606]
[1770740819210,3.89372318,84.539,84.473,14.37985178]
[1770740820017,3.89372318,84.529,84.473,3.71925178]
[1770740820710,3.89372318,84.527,84.473,3.71925178]
[1770740820904,3.89372318,84.542,84.473,3.71925178]
[1770740821111,3.89372318,84.559,84.481,3.71925178]
[1770740821319,10.65,84.558,84.503,3.71925178]
[1770740821617,3.89372318,84.576,84.503,3.71925178]
[1770740821808,3.89372318,84.576,84.532,10.6531]
[1770740822009,13.51347168,84.59,84.527,3.71925178]
[1770740822308,3.89372318,84.589,84.527,3.71925178]
[1770740822510,14.53972318,84.589,84.537,10.6524]
[1770740822708,3.89372318,84.606,84.538,3.71925178]
[1770740822905,3.89372318,84.626,84.541,3.71925178]
[1770740823106,10.6427,84.615,84.55,10.6509]
[1770740823413,3.89372318,84.619,84.541,3.71925178]
[1770740823719,10.645,84.597,84.543,3.71925178]
[1770740824411,3.89372318,84.588,84.531,10.6533]
[1770740824820,3.89372318,84.585,84.526,3.71925178]
[1770740825618,10.6468,84.583,84.527,10.6538]
[1770740825917,14.54052318,84.583,84.527,10.6538]
[1770740826221,3.89372318,84.582,84.527,10.6538]
[1770740826517,10.6474,84.578,84.527,10.6538]
[1770740826721,3.89372318,84.577,84.51,3.71925178]
[1770740827321,3.89372318,84.597,84.52,3.71925178]
[1770740827621,10.6474,84.578,84.52,3.71925178]
[1770740827817,10.6474,84.578,84.531,10.6532]
[1770740828221,10.6474,84.578,84.51,9.6197485]
[1770740828222,3.89372318,84.597,84.532,3.71925178]
[1770740828418,3.89372318,84.597,84.539,3.71925178]
[1770740829412,3.89372318,84.619,84.553,3.71925178]
[1770740830616,14.53872318,84.597,84.543,10.6517]
[1770740831020,14.53872318,84.597,84.544,3.71925178]
[1770740831718,10.645,84.597,84.544,3.71925178]
[1770740831920,10.646,84.589,84.544,3.71925178]
[1770740832537,3.89372318,84.556,84.507,10.6563]
[1770740832733,9.59000717,84.59,84.481,3.71925178]
[1770740832734,3.89372318,84.549,84.481,3.71925178]
[1770740833723,3.89372318,84.544,84.481,3.71925178]
[1770740833926,3.89372318,84.529,84.451,3.71925178]
[1770740834131,10.6516,84.545,84.49,10.6584]
[1770740834433,3.89372318,84.566,84.491,3.71925178]
[1770740834624,10.6476,84.577,84.517,3.71925178]
[1770740835022,3.89372318,84.589,84.517,3.71925178]
[1770740835530,10.6464,84.586,84.529,3.71925178]
[1770740836320,10.6464,84.586,84.464,35.57]
[1770740836321,3.89372318,84.579,84.511,3.71925178]
[1770740836721,10.6478,84.575,84.527,10.6536]
[1770740837824,3.89372318,84.579,84.528,3.71925178]
[1770740838523,10.6475,84.578,84.528,3.71925178]
[1770740839526,10.6481,84.573,84.528,3.71925178]
[1770740840930,3.89372318,84.577,84.529,10.6535]
[1770740841332,3.89372318,84.577,84.528,3.71925178]
[1770740841527,10.6481,84.572,84.528,3.71925178]
[1770740841829,3.89372318,84.577,84.511,4.01671443]
[1770740842232,3.96203953,84.559,84.493,4.01671443]
[1770740842634,3.96203953,84.549,84.493,4.01671443]
[1770740843033,10.6519,84.542,84.494,10.6579]
[1770740844436,3.96203953,84.549,84.493,4.01671443]
[1770740844437,10.6529,84.534,84.493,4.01671443]
[1770740845231,10.6539,84.526,84.482,10.6594]
[1770740845436,10.6539,84.526,84.475,4.01671443]
[1770740846730,3.96203953,84.535,84.475,4.01671443]
[1770740846731,10.6548,84.519,84.475,4.01671443]
[1770740848237,10.6548,84.519,84.467,10.6613]
[1770740848238,3.96203953,84.53,84.451,4.01671443]
[1770740848540,3.96203953,84.529,84.451,4.01671443]
[1770740848934,9.59495432,84.53,84.451,4.01671443]
[1770740848935,10.6579,84.495,84.451,4.01671443]
[1770740849129,3.96203953,84.511,84.451,4.01671443]
[1770740850938,3.96203953,84.572,84.481,4.01671443]
[1770740851332,3.96203953,84.552,84.481,4.01671443]
[1770740852338,3.96203953,84.533,84.482,10.6594]
[1770740853437,3.96203953,84.533,84.489,10.6586]
[1770740854943,3.96203953,84.533,84.481,4.01671443]
[1770740855146,3.96203953,84.533,84.464,4.01671443]
[1770740855844,3.96203953,84.533,84.496,10.6576]
[1770740856645,3.96203953,84.533,84.488,10.6586]
[1770740857242,10.6534,84.53,84.472,10.6606]
[1770740857449,3.96203953,84.533,84.473,4.01671443]
[1770740857841,10.6524,84.538,84.487,4.01671443]
[1770740858842,10.6524,84.538,84.49,10.6584]
[1770740859544,14.61443953,84.538,84.487,4.01671443]
[1770740859747,3.96203953,84.537,84.471,4.01671443]
[1770740860848,3.96203953,84.523,84.451,4.01671443]
[1770740861348,3.96203953,84.523,84.457,4.01671443]
[1770740861349,10.6566,84.506,84.457,4.01671443]
[1770740861545,10.6566,84.506,84.441,97.68]
[1770740861546,3.96203953,84.507,84.415,21.3357]
[1770740861845,10.95360391,84.54,84.362,166.0504]
[1770740861846,10.6595,84.482,84.433,10.6656]
[1770740862049,10.6595,84.482,84.384,14.60758815]
[1770740862050,3.96203953,84.479,84.401,4.01671443]
[1770740862445,10.6615,84.466,84.412,10.6683]
[1770740862656,3.96203953,84.479,84.412,14.68501443]
[1770740862843,3.96203953,84.479,84.412,4.01671443]
[1770740863846,3.96203953,84.479,84.394,4.01671443]
[1770740864449,10.6611,84.469,84.41,4.01671443]
[1770740865352,10.6611,84.469,84.415,10.6678]
[1770740866353,3.96203953,84.462,84.41,4.01671443]
[1770740866852,9.59495432,84.48,84.41,4.01671443]
[1770740866853,3.96203953,84.479,84.41,4.01671443]
[1770740867448,10.662,84.462,84.413,10.6682]
[1770740867648,10.662,84.462,84.414,4.01671443]
[1770740868855,10.662,84.462,84.416,14.68451443]
[1770740869149,10.662,84.462,84.416,4.01671443]
[1770740870365,10.6631,84.454,84.416,4.01671443]
[1770740870859,10.6631,84.454,84.408,10.6687]
[1770740872063,3.86169942,84.461,84.412,10.6682]
[1770740872260,3.86169942,84.461,84.413,3.99233741]
[1770740872667,10.6614,84.467,84.416,3.99233741]
[1770740873071,3.86169942,84.494,84.416,3.99233741]
[1770740874768,3.86169942,84.48,84.43,3.99233741]
[1770740875166,3.86169942,84.48,84.41,9.59495432]
[1770740875167,3.86169942,84.48,84.411,3.99233741]
[1770740875372,11.54512508,84.537,84.396,3.99233741]
[1770740875373,3.86169942,84.458,84.396,3.99233741]
[1770740875869,3.86169942,84.458,84.41,3.99233741]
[1770740876469,3.86169942,84.458,84.411,10.6683]
[1770740876670,10.6628,84.456,84.41,3.99233741]
[1770740877372,3.86169942,84.474,84.411,3.99233741]
[1770740878272,3.86169942,84.471,84.42,10.6673]
[1770740880271,3.86169942,84.469,84.412,10.6682]
[1770740880673,3.86169942,84.469,84.418,10.6675]
[1770740880874,3.86169942,84.469,84.419,3.99233741]
[1770740881889,35.57,84.489,84.39,9.59495432]
[1770740881890,3.86169942,84.466,84.402,3.99233741]
[1770740882272,10.6623,84.46,84.407,10.6689]
[1770740882576,10.6623,84.46,84.408,3.99233741]
[1770740882983,10.6631,84.454,84.41,10.6685]
[1770740883280,10.6631,84.454,84.411,3.99233741]
[1770740883479,10.6618,84.464,84.42,14.65963741]
[1770740883675,10.6618,84.464,84.421,3.99233741]
[1770740883875,3.86169942,84.489,84.421,3.99233741]
[1770740884680,10.6606,84.474,84.427,10.6663]
[1770740885282,14.52309942,84.467,84.421,3.99233741]
[1770740885480,3.86169942,84.466,84.421,3.99233741]
[1770740885681,3.86169942,84.466,84.389,97.72]
[1770740885682,3.86169942,84.466,84.406,3.99233741]
[1770740886372,3.86169942,84.466,84.39,13.58729173]
[1770740886577,3.86169942,84.466,84.391,3.99233741]
[1770740886980,3.86169942,84.437,84.391,3.99233741]
[1770740887285,3.86169942,84.437,84.376,3.99233741]
[1770740887579,3.86169942,84.422,84.376,3.99233741]
[1770740887782,3.86169942,84.422,84.368,10.6738]
[1770740888785,10.6675,84.419,84.373,10.6732]
[1770740888981,3.86169942,84.439,84.374,3.99233741]
[1770740889173,10.6662,84.429,84.374,3.99233741]
[1770740889377,9.59495432,84.47,84.374,3.99233741]
[1770740889378,3.86169942,84.428,84.374,3.99233741]
[1770740890085,10.6669,84.423,84.374,3.99233741]
[1770740890283,14.52859942,84.423,84.374,3.99233741]
[1770740890683,3.86169942,84.423,84.376,3.99233741]
[1770740891277,3.86169942,84.423,84.378,10.6725]
[1770740891677,3.86169942,84.439,84.379,3.99233741]
[1770740892077,14.52689942,84.437,84.382,10.672]
[1770740892380,97.3,84.454,84.383,3.99233741]
[1770740892584,10.6642,84.445,84.398,10.67]
[1770740892786,10.6642,84.445,84.398,14.66233741]
[1770740892979,3.86169942,84.48,84.399,3.99233741]
[1770740893383,3.86169942,84.463,84.399,3.99233741]
[1770740893982,3.86169942,84.463,84.371,3.99233741]
[1770740894584,3.86169942,84.463,84.377,3.99233741]
[1770740894585,3.86169942,84.432,84.377,3.99233741]
[1770740895786,3.86169942,84.427,84.377,3.99233741]
[1770740896186,10.6682,84.413,84.377,3.99233741]
[1770740896384,10.6682,84.413,84.363,10.6745]
[1770740896787,10.6682,84.413,84.364,3.99233741]
[1770740897790,10.6691,84.406,84.364,3.99233741]
[1770740898388,10.6681,84.414,84.367,3.99233741]
[1770740899994,3.96280297,84.413,84.363,10.6744]
[1770740900194,3.96280297,84.407,84.351,3.80246791]
[1770740900792,14.63280297,84.399,84.351,3.80246791]
[1770740900993,9.6307972,84.42,84.351,3.80246791]
[1770740900994,3.96280297,84.398,84.351,3.80246791]
[1770740901294,3.96280297,84.398,84.342,10.677]
[1770740902796,14.73052941,84.389,84.342,10.677]
[1770740903099,10.9683132,84.431,84.335,4.01432892]
[1770740903100,4.05922941,84.388,84.335,4.01432892]
[1770740903591,4.05922941,84.388,84.316,4.01432892]
[1770740904699,4.05922941,84.377,84.326,10.6792]
[1770740905395,4.05922941,84.375,84.316,14.69472892]
[1770740905596,4.05922941,84.375,84.299,4.01432892]
[1770740906495,4.05922941,84.366,84.299,4.01432892]
[1770740907589,4.05922941,84.368,84.299,4.01432892]
[1770740908100,4.05922941,84.368,84.301,4.01432892]
[1770740908496,4.05922941,84.368,84.317,4.01432892]
[1770740909205,14.73332941,84.366,84.317,4.01432892]
[1770740909898,4.05922941,84.361,84.317,4.01432892]
[1770740911691,10.6756,84.355,84.317,4.01432892]
[1770740912904,4.05922941,84.361,84.317,14.69462892]
[1770740913305,4.05922941,84.375,84.318,4.01432892]
[1770740913499,4.05922941,84.375,84.33,4.01432892]
[1770740914602,4.05922941,84.375,84.331,14.69282892]
[1770740914804,10.6714,84.388,84.332,4.01432892]
[1770740915216,10.6714,84.388,84.342,4.01432892]
[1770740915407,4.05922941,84.411,84.342,4.01432892]
[1770740915701,4.05922941,84.429,84.342,4.01432892]
[1770740915907,10.6667,84.425,84.371,10.6734]
[1770740916405,10.6667,84.425,84.34,9.64596739]
[1770740916406,4.05922941,84.415,84.35,4.01432892]
[1770740916603,4.05922941,84.43,84.36,9.64596739]
[1770740916803,4.05922941,84.43,84.375,4.01432892]
[1770740917697,4.05922941,84.43,84.36,9.64596739]
[1770740917904,4.05922941,84.429,84.357,4.01432892]
[1770740918804,10.6676,84.418,84.36,4.01432892]
[1770740920004,14.72682941,84.418,84.36,4.01432892]
[1770740920310,4.05922941,84.417,84.36,4.01432892]
[1770740920700,4.05922941,84.417,84.363,4.01432892]
[1770740920901,4.05922941,84.414,84.341,4.01432892]
[1770740921712,4.05922941,84.405,84.354,10.6755]
[1770740922713,10.6695,84.403,84.354,10.6755]
[1770740922905,4.05922941,84.405,84.354,14.68982892]
[1770740923113,4.05922941,84.422,84.362,4.01432892]
[1770740924810,4.05922941,84.42,84.367,10.674]
[1770740925311,4.05922941,84.409,84.345,4.01432892]
[1770740926406,50.1944176,84.449,84.321,4.01432892]
[1770740926407,4.05922941,84.397,84.321,4.01432892]
[1770740927811,9.64596739,84.41,84.339,4.01432892]
[1770740928017,4.05922941,84.416,84.341,4.01432892]
[1770740929714,10.6682,84.413,84.36,10.6748]
[1770740930221,10.6689,84.408,84.357,4.01432892]
[1770740930811,4.09749896,84.393,84.326,3.71274711]
[1770740931413,4.09749896,84.393,84.336,3.71274711]
[1770740932121,10.6728,84.377,84.336,3.71274711]
[1770740934118,10.6718,84.385,84.336,3.71274711]
[1770740934620,10.6718,84.385,84.339,10.6775]
[1770740935523,10.6718,84.385,84.344,10.6768]
[1770740936216,10.6718,84.385,84.34,3.71274711]
[1770740937220,10.6718,84.385,84.342,10.6771]
[1770740937422,10.6707,84.393,84.343,3.71274711]
[1770740938320,10.6697,84.401,84.357,3.71274711]
[1770740941217,10.6697,84.401,84.352,10.6758]
[1770740941218,14.76759896,84.398,84.341,3.71274711]
[1770740941422,4.09749896,84.397,84.341,3.71274711]
[1770740942327,4.09749896,84.397,84.357,10.6752]
[1770740943116,10.6692,84.406,84.363,14.38714711]
[1770740943429,10.9683132,84.429,84.364,3.71274711]
[1770740943430,4.09749896,84.429,84.364,3.71274711]
[1770740943930,4.09749896,84.459,84.382,3.71274711]
[1770740944617,4.09749896,84.459,84.396,3.71274711]
[1770740945016,4.09749896,84.452,84.396,3.71274711]
[1770740945218,4.09749896,84.452,84.381,3.71274711]
[1770740946226,10.6657,84.433,84.384,10.6718]
[1770740946417,10.6657,84.433,84.384,14.38454711]
[1770740946618,4.09749896,84.438,84.385,3.71274711]
[1770740946818,4.09749896,84.453,84.4,10.6697]
[1770740947126,4.09749896,84.453,84.4,3.71274711]
[1770740948825,4.09749896,84.448,84.4,3.71274711]
[1770740949431,4.09749896,84.448,84.385,3.71274711]
[1770740949823,4.09749896,84.446,84.395,10.6704]
[1770740950923,4.09749896,84.444,84.387,10.6715]
[1770740951325,4.09749896,84.444,84.37,3.71274711]
[1770740951527,4.09749896,84.42,84.37,3.71274711]
[1770740952027,10.6681,84.414,84.36,3.71274711]
[1770740952227,4.09749896,84.439,84.36,3.71274711]
[1770740952733,4.09749896,84.43,84.36,3.71274711]
[1770740953131,10.6662,84.429,84.383,10.6719]
[1770740953437,10.6662,84.429,84.375,3.71274711]
[1770740953438,4.09749896,84.428,84.375,3.71274711]
[1770740953827,10.6666,84.426,84.376,10.6728]
[1770740954421,10.6666,84.426,84.377,3.71274711]
[1770740954621,4.09749896,84.428,84.379,10.6723]
[1770740955526,96.3,84.449,84.387,3.71274711]
[1770740955527,10.6654,84.435,84.387,3.71274711]
[1770740955836,4.09749896,84.443,84.387,3.71274711]
[1770740956728,4.09749896,84.443,84.4,10.6697]
[1770740957431,10.6646,84.442,84.393,10.6707]
[1770740958333,4.09749896,84.443,84.402,10.6695]
[1770740958532,10.6635,84.45,84.403,3.71274711]
[1770740958738,4.09749896,84.449,84.403,3.71274711]
[1770740959732,10.6638,84.448,84.403,3.71274711]